[Event "Titled Tuesday Blitz October 25 Late 2022"]
[White "Boskovic, Drasko"]
[Black "Mendez Fortes, Eduardo Jesus"]
[WhiteFideId "927368"]
[BlackFideId "3502376"]
[WhiteElo "2388"]
[BlackElo "2307"]
[Result "1-0"]
[Round "03"]
[TimeControl "180+1"]
[Date "2022.10.26"]
[WhiteClock "0:01:19"]
[BlackClock "0:00:44"]

1. d4 {[%clk 0:02:58]}  Nf6 {[%clk 0:02:59]} 2. Nf3 {[%clk 0:02:58]}  d5 {[%clk 0:02:59]} 3. Bf4 {[%clk 0:02:57]}  c5 {[%clk 0:02:59]} 4. e3 {[%clk 0:02:57]}  Nc6 {[%clk 0:02:59]} 5. Nbd2 {[%clk 0:02:58]}  Bf5 {[%clk 0:02:55]} 6. dxc5 {[%clk 0:02:54]}  Qa5 {[%clk 0:02:52]} 7. a3 {[%clk 0:02:52]}  Qxc5 {[%clk 0:02:51]} 8. c4 {[%clk 0:02:50]}  e6 {[%clk 0:02:40]} 9. b4 {[%clk 0:02:49]}  Qb6 {[%clk 0:02:40]} 10. c5 {[%clk 0:02:48]}  Qd8 {[%clk 0:02:40]} 11. Be2 {[%clk 0:02:46]}  Be7 {[%clk 0:02:40]} 12. h3 {[%clk 0:02:47]}  O-O {[%clk 0:02:40]} 13. O-O {[%clk 0:02:47]}  Nd7 {[%clk 0:02:39]} 14. Nd4 {[%clk 0:02:41]}  Bg6 {[%clk 0:02:36]} 15. N2f3 {[%clk 0:02:37]}  Bf6 {[%clk 0:02:33]} 16. Rc1 {[%clk 0:02:31]}  e5 {[%clk 0:02:25]} 17. Nxc6 {[%clk 0:02:30]}  bxc6 {[%clk 0:02:26]} 18. Bg3 {[%clk 0:02:30]}  a6 {[%clk 0:02:22]} 19. Qa4 {[%clk 0:02:30]}  Qc7 {[%clk 0:02:17]} 20. Rfd1 {[%clk 0:02:29]}  Rfe8 {[%clk 0:02:13]} 21. Nd4 {[%clk 0:02:27]}  Rec8 {[%clk 0:02:05]} 22. Nb3 {[%clk 0:02:26]}  Qd8 {[%clk 0:01:44]} 23. Na5 {[%clk 0:02:25]}  Nb8 {[%clk 0:01:43]} 24. Bg4 {[%clk 0:02:24]}  Rc7 {[%clk 0:01:39]} 25. Nc4 {[%clk 0:02:17]}  Qe8 {[%clk 0:01:35]} 26. Nd6 {[%clk 0:02:13]}  Qd8 {[%clk 0:01:32]} 27. Qa5 {[%clk 0:02:10]}  Nd7 {[%clk 0:01:25]} 28. f4 {[%clk 0:02:01]}  exf4 {[%clk 0:01:22]} 29. exf4 {[%clk 0:02:00]}  h5 {[%clk 0:01:14]} 30. Bf3 {[%clk 0:01:59]}  h4 {[%clk 0:01:14]} 31. Bf2 {[%clk 0:01:58]}  Bh7 {[%clk 0:01:10]} 32. Re1 {[%clk 0:01:55]}  Bb2 {[%clk 0:01:06]} 33. Rcd1 {[%clk 0:01:50]}  Bc3 {[%clk 0:01:04]} 34. Re8+ {[%clk 0:01:48]}  Qxe8 {[%clk 0:01:03]} 35. Nxe8 {[%clk 0:01:49]}  Rcc8 {[%clk 0:01:03]} 36. Nd6 {[%clk 0:01:48]}  Rf8 {[%clk 0:00:55]} 37. Bxh4 {[%clk 0:01:47]}  Ra7 {[%clk 0:00:54]} 38. Be7 {[%clk 0:01:43]}  Rb8 {[%clk 0:00:52]} 39. g4 {[%clk 0:01:41]}  Bc2 {[%clk 0:00:51]} 40. Rc1 {[%clk 0:01:41]}  Bd4+ {[%clk 0:00:51]} 41. Kg2 {[%clk 0:01:41]}  Bb3 {[%clk 0:00:51]} 42. h4 {[%clk 0:01:35]}  Nf8 {[%clk 0:00:49]} 43. Bxf8 {[%clk 0:01:30]}  Kxf8 {[%clk 0:00:50]} 44. Re1 {[%clk 0:01:28]}  Bc3 {[%clk 0:00:47]} 45. Re3 {[%clk 0:01:27]}  d4 {[%clk 0:00:47]} 46. Qb6 {[%clk 0:01:19]}  Rxb6 {[%clk 0:00:44]} 47. Re8# {[%clk 0:01:19]} 1-0


[Site "https://www.chess.com"]

[Event "Titled Tuesday Blitz October 25 Late 2022"]
[White "Brown, Andrew"]
[Black "Kalaiyalahan, Akshaya"]
[WhiteFideId "3206513"]
[BlackFideId "422894"]
[WhiteElo "2245"]
[BlackElo "2043"]
[Result "1-0"]
[Round "03"]
[TimeControl "180+1"]
[Date "2022.10.26"]
[WhiteClock "0:00:13"]
[BlackClock "0:00:07"]

1. d4 {[%clk 0:03:00]}  d5 {[%clk 0:02:54]} 2. c4 {[%clk 0:03:01]}  c6 {[%clk 0:02:54]} 3. Nc3 {[%clk 0:03:01]}  Nf6 {[%clk 0:02:52]} 4. Nf3 {[%clk 0:03:01]}  dxc4 {[%clk 0:02:51]} 5. g3 {[%clk 0:03:00]}  b5 {[%clk 0:02:46]} 6. Bg2 {[%clk 0:02:58]}  Bb7 {[%clk 0:02:46]} 7. Ne5 {[%clk 0:02:56]}  Nbd7 {[%clk 0:02:28]} 8. Nxc6 {[%clk 0:02:21]}  Qb6 {[%clk 0:02:26]} 9. d5 {[%clk 0:02:10]}  b4 {[%clk 0:02:09]} 10. Na4 {[%clk 0:02:07]}  Qb5 {[%clk 0:02:06]} 11. Be3 {[%clk 0:01:47]}  Nxd5 {[%clk 0:01:51]} 12. Qxd5 {[%clk 0:01:43]}  Qxa4 {[%clk 0:01:49]} 13. Rd1 {[%clk 0:01:25]}  Rd8 {[%clk 0:01:16]} 14. Qxc4 {[%clk 0:00:52]}  Qxd1+ {[%clk 0:00:51]} 15. Kxd1 {[%clk 0:00:52]}  Ne5+ {[%clk 0:00:39]} 16. Nxd8 {[%clk 0:00:51]}  Nxc4 {[%clk 0:00:39]} 17. Nxb7 {[%clk 0:00:49]}  Nxe3+ {[%clk 0:00:35]} 18. fxe3 {[%clk 0:00:49]}  e6 {[%clk 0:00:35]} 19. Bc6+ {[%clk 0:00:43]}  Ke7 {[%clk 0:00:33]} 20. Kc2 {[%clk 0:00:38]}  g6 {[%clk 0:00:29]} 21. Rd1 {[%clk 0:00:36]}  Bh6 {[%clk 0:00:29]} 22. Rd7+ {[%clk 0:00:34]}  Kf6 {[%clk 0:00:29]} 23. Nd6 {[%clk 0:00:28]}  Bxe3 {[%clk 0:00:26]} 24. Rxf7+ {[%clk 0:00:27]}  Ke5 {[%clk 0:00:24]} 25. Nc4+ {[%clk 0:00:26]}  Kd4 {[%clk 0:00:24]} 26. Nxe3 {[%clk 0:00:20]}  Kxe3 {[%clk 0:00:24]} 27. Re7 {[%clk 0:00:20]}  Kxe2 {[%clk 0:00:19]} 28. Rxe6+ {[%clk 0:00:20]}  Kf2 {[%clk 0:00:19]} 29. Kb3 {[%clk 0:00:20]}  Rd8 {[%clk 0:00:17]} 30. Kxb4 {[%clk 0:00:19]}  Rd2 {[%clk 0:00:17]} 31. Kc3 {[%clk 0:00:19]}  Rd1 {[%clk 0:00:16]} 32. b4 {[%clk 0:00:18]}  Ra1 {[%clk 0:00:16]} 33. Kb2 {[%clk 0:00:17]}  Rd1 {[%clk 0:00:15]} 34. Ba4 {[%clk 0:00:14]}  Rd2+ {[%clk 0:00:15]} 35. Bc2 {[%clk 0:00:15]}  Kg1 {[%clk 0:00:15]} 36. h3 {[%clk 0:00:13]}  Kh2 {[%clk 0:00:14]} 37. b5 {[%clk 0:00:11]}  Kxh3 {[%clk 0:00:13]} 38. Re7 {[%clk 0:00:12]}  Kxg3 {[%clk 0:00:14]} 39. Rxh7 {[%clk 0:00:12]}  g5 {[%clk 0:00:13]} 40. Rxa7 {[%clk 0:00:11]}  g4 {[%clk 0:00:14]} 41. b6 {[%clk 0:00:12]}  Rd5 {[%clk 0:00:11]} 42. a4 {[%clk 0:00:12]}  Rd8 {[%clk 0:00:10]} 43. a5 {[%clk 0:00:12]}  Kg2 {[%clk 0:00:08]} 44. Rg7 {[%clk 0:00:11]}  g3 {[%clk 0:00:08]} 45. b7 {[%clk 0:00:11]}  Kf2 {[%clk 0:00:07]} 46. a6 {[%clk 0:00:11]}  g2 {[%clk 0:00:07]} 47. a7 {[%clk 0:00:12]}  g1=Q {[%clk 0:00:07]} 48. Rxg1 {[%clk 0:00:12]}  Kxg1 {[%clk 0:00:07]} 49. b8=Q {[%clk 0:00:13]} 1-0


[Site "https://www.chess.com"]

[Event "Titled Tuesday Blitz October 25 Late 2022"]
[White "Bruha, Nicholas"]
[Black "Martinez Alcantara, Jose Eduardo"]
[WhiteFideId "30938988"]
[BlackFideId "3805662"]
[WhiteElo "2197"]
[BlackElo "2703"]
[Result "0-1"]
[Round "03"]
[TimeControl "180+1"]
[Date "2022.10.26"]
[WhiteClock "0:00:03"]
[BlackClock "0:01:17"]

1. d4 {[%clk 0:03:00]}  Nf6 {[%clk 0:03:00]} 2. Nf3 {[%clk 0:03:00]}  e6 {[%clk 0:03:00]} 3. Bf4 {[%clk 0:02:59]}  b6 {[%clk 0:03:01]} 4. e3 {[%clk 0:02:57]}  Bb7 {[%clk 0:03:02]} 5. Nbd2 {[%clk 0:02:54]}  Be7 {[%clk 0:03:03]} 6. h3 {[%clk 0:02:54]}  O-O {[%clk 0:03:03]} 7. Bd3 {[%clk 0:02:53]}  c5 {[%clk 0:03:04]} 8. c3 {[%clk 0:02:53]}  cxd4 {[%clk 0:03:04]} 9. exd4 {[%clk 0:02:51]}  d6 {[%clk 0:03:05]} 10. O-O {[%clk 0:02:51]}  Nbd7 {[%clk 0:03:05]} 11. Qe2 {[%clk 0:02:50]}  Re8 {[%clk 0:03:06]} 12. Rfe1 {[%clk 0:02:47]}  Qc7 {[%clk 0:03:06]} 13. Bh2 {[%clk 0:02:43]}  Bf8 {[%clk 0:03:06]} 14. Ne4 {[%clk 0:02:39]}  Nxe4 {[%clk 0:03:05]} 15. Bxe4 {[%clk 0:02:39]}  Nf6 {[%clk 0:03:06]} 16. Bxb7 {[%clk 0:02:31]}  Qxb7 {[%clk 0:03:07]} 17. Nd2 {[%clk 0:02:28]}  b5 {[%clk 0:03:07]} 18. Ne4 {[%clk 0:02:24]}  Nxe4 {[%clk 0:03:07]} 19. Qxe4 {[%clk 0:02:25]}  d5 {[%clk 0:03:06]} 20. Qg4 {[%clk 0:02:24]}  b4 {[%clk 0:03:05]} 21. Be5 {[%clk 0:02:21]}  bxc3 {[%clk 0:03:05]} 22. bxc3 {[%clk 0:02:22]}  Rac8 {[%clk 0:02:47]} 23. Reb1 {[%clk 0:01:32]}  Qa6 {[%clk 0:02:32]} 24. Rb3 {[%clk 0:01:31]}  Rc6 {[%clk 0:02:20]} 25. h4 {[%clk 0:01:08]}  Rec8 {[%clk 0:02:14]} 26. h5 {[%clk 0:00:33]}  h6 {[%clk 0:02:13]} 27. c4 {[%clk 0:00:20]}  dxc4 {[%clk 0:01:33]} 28. Rg3 {[%clk 0:00:20]}  f5 {[%clk 0:01:33]} 29. Qg6 {[%clk 0:00:18]}  Qb7 {[%clk 0:01:34]} 30. Qxh6 {[%clk 0:00:15]}  Qf7 {[%clk 0:01:34]} 31. Qg5 {[%clk 0:00:13]}  Kh7 {[%clk 0:01:30]} 32. Rc1 {[%clk 0:00:12]}  c3 {[%clk 0:01:30]} 33. d5 {[%clk 0:00:12]}  exd5 {[%clk 0:01:30]} 34. Rgxc3 {[%clk 0:00:12]}  Rc4 {[%clk 0:01:29]} 35. g3 {[%clk 0:00:07]}  Re8 {[%clk 0:01:27]} 36. Bf4 {[%clk 0:00:05]}  Ree4 {[%clk 0:01:26]} 37. Rxc4 {[%clk 0:00:04]}  dxc4 {[%clk 0:01:27]} 38. Qd8 {[%clk 0:00:03]}  Bc5 {[%clk 0:01:17]} 39. Qd5 {[%clk 0:00:03]}  Qxd5 {[%clk 0:01:17]} 0-1


[Site "https://www.chess.com"]

[Event "Titled Tuesday Blitz October 25 Late 2022"]
[White "Celestino, Rafael Teixeira"]
[Black "Tayar, Jonathan"]
[WhiteFideId "2108925"]
[BlackFideId "2606534"]
[WhiteElo "2403"]
[BlackElo "2406"]
[Result "1-0"]
[Round "03"]
[TimeControl "180+1"]
[Date "2022.10.26"]
[WhiteClock "0:00:05"]
[BlackClock "0:00:07"]

1. e4 {[%clk 0:03:00]}  c5 {[%clk 0:02:59]} 2. Nf3 {[%clk 0:03:00]}  d6 {[%clk 0:02:59]} 3. Bc4 {[%clk 0:03:00]}  a6 {[%clk 0:02:58]} 4. d4 {[%clk 0:02:59]}  cxd4 {[%clk 0:02:58]} 5. Nxd4 {[%clk 0:03:00]}  Nf6 {[%clk 0:02:58]} 6. Nc3 {[%clk 0:02:59]}  b5 {[%clk 0:02:56]} 7. Bd3 {[%clk 0:02:53]}  e6 {[%clk 0:02:51]} 8. Bg5 {[%clk 0:02:52]}  Be7 {[%clk 0:02:48]} 9. O-O {[%clk 0:02:52]}  Qc7 {[%clk 0:02:48]} 10. Bxf6 {[%clk 0:02:43]}  Bxf6 {[%clk 0:02:07]} 11. Bxb5+ {[%clk 0:02:42]}  axb5 {[%clk 0:02:07]} 12. Ndxb5 {[%clk 0:02:42]}  Qb6 {[%clk 0:02:07]} 13. Nxd6+ {[%clk 0:02:43]}  Ke7 {[%clk 0:02:07]} 14. Nc4 {[%clk 0:02:15]}  Qc5 {[%clk 0:01:59]} 15. e5 {[%clk 0:02:12]}  Qxc4 {[%clk 0:01:46]} 16. exf6+ {[%clk 0:02:11]}  gxf6 {[%clk 0:01:43]} 17. Re1 {[%clk 0:02:11]}  Bb7 {[%clk 0:01:35]} 18. Qd2 {[%clk 0:01:32]}  Rg8 {[%clk 0:01:23]} 19. g3 {[%clk 0:01:23]}  Nd7 {[%clk 0:01:18]} 20. b3 {[%clk 0:01:04]}  Qc6 {[%clk 0:01:16]} 21. Ne4 {[%clk 0:01:00]}  Qb6 {[%clk 0:00:40]} 22. Rad1 {[%clk 0:00:53]}  Ne5 {[%clk 0:00:39]} 23. Qf4 {[%clk 0:00:53]}  Bxe4 {[%clk 0:00:29]} 24. Rxe4 {[%clk 0:00:49]}  Rad8 {[%clk 0:00:30]} 25. Rde1 {[%clk 0:00:48]}  Rg4 {[%clk 0:00:22]} 26. Rb4 {[%clk 0:00:32]}  Qc5 {[%clk 0:00:10]} 27. Rb7+ {[%clk 0:00:16]}  Rd7 {[%clk 0:00:10]} 28. Rxd7+ {[%clk 0:00:14]}  Kxd7 {[%clk 0:00:11]} 29. Rxe5 {[%clk 0:00:14]}  Qxe5 {[%clk 0:00:09]} 30. Qxg4 {[%clk 0:00:14]}  Qe1+ {[%clk 0:00:10]} 31. Kg2 {[%clk 0:00:14]}  f5 {[%clk 0:00:11]} 32. Qd4+ {[%clk 0:00:14]}  Ke7 {[%clk 0:00:11]} 33. a4 {[%clk 0:00:15]}  Qe2 {[%clk 0:00:10]} 34. a5 {[%clk 0:00:15]}  Qxc2 {[%clk 0:00:10]} 35. Qb4+ {[%clk 0:00:13]}  Kf6 {[%clk 0:00:09]} 36. Qd4+ {[%clk 0:00:12]}  Kg6 {[%clk 0:00:10]} 37. Qc4 {[%clk 0:00:13]}  Qa2 {[%clk 0:00:07]} 38. a6 {[%clk 0:00:13]}  Qa5 {[%clk 0:00:07]} 39. h4 {[%clk 0:00:12]}  h6 {[%clk 0:00:06]} 40. b4 {[%clk 0:00:13]}  Qb6 {[%clk 0:00:07]} 41. b5 {[%clk 0:00:12]}  f4 {[%clk 0:00:05]} 42. Qc6 {[%clk 0:00:12]}  Qd4 {[%clk 0:00:04]} 43. a7 {[%clk 0:00:11]}  fxg3 {[%clk 0:00:05]} 44. fxg3 {[%clk 0:00:11]}  Qd2+ {[%clk 0:00:05]} 45. Kf3 {[%clk 0:00:11]}  Qd3+ {[%clk 0:00:04]} 46. Kf2 {[%clk 0:00:10]}  Qd2+ {[%clk 0:00:04]} 47. Kf3 {[%clk 0:00:11]}  Qd3+ {[%clk 0:00:04]} 48. Kf4 {[%clk 0:00:10]}  Qd2+ {[%clk 0:00:01]} 49. Ke5 {[%clk 0:00:09]}  Qe3+ {[%clk 0:00:01]} 50. Kd6 {[%clk 0:00:09]}  Qxg3+ {[%clk 0:00:02]} 51. Kd7 {[%clk 0:00:08]}  Qd3+ {[%clk 0:00:03]} 52. Kc7 {[%clk 0:00:05]}  Qe3 {[%clk 0:00:03]} 53. a8=Q {[%clk 0:00:04]}  Qf4+ {[%clk 0:00:04]} 54. Kc8 {[%clk 0:00:04]}  Kh5 {[%clk 0:00:04]} 55. Qe4 {[%clk 0:00:03]}  Qf6 {[%clk 0:00:05]} 56. Qe3 {[%clk 0:00:03]}  Qc3+ {[%clk 0:00:04]} 57. Qxc3 {[%clk 0:00:03]}  f5 {[%clk 0:00:04]} 58. Qcf3+ {[%clk 0:00:03]}  Kxh4 {[%clk 0:00:05]} 59. Qac6 {[%clk 0:00:03]}  Kg5 {[%clk 0:00:06]} 60. Qxe6 {[%clk 0:00:04]}  h5 {[%clk 0:00:06]} 61. Qexf5+ {[%clk 0:00:05]}  Kh4 {[%clk 0:00:07]} 62. Q5f4# {[%clk 0:00:05]} 1-0


[Site "https://www.chess.com"]

[Event "Titled Tuesday Blitz October 25 Late 2022"]
[White "Chigaev, Maksim"]
[Black "Graif, William"]
[WhiteFideId "4108116"]
[BlackFideId "2609835"]
[WhiteElo "2537"]
[BlackElo "2205"]
[Result "0-1"]
[Round "03"]
[TimeControl "180+1"]
[Date "2022.10.26"]
[WhiteClock "0:00:24"]
[BlackClock "0:00:14"]

1. Nf3 {[%clk 0:03:00]}  d5 {[%clk 0:02:53]} 2. c4 {[%clk 0:03:01]}  e6 {[%clk 0:02:51]} 3. g3 {[%clk 0:03:01]}  Nf6 {[%clk 0:02:50]} 4. Bg2 {[%clk 0:03:01]}  Be7 {[%clk 0:02:51]} 5. O-O {[%clk 0:03:02]}  O-O {[%clk 0:02:52]} 6. b3 {[%clk 0:03:02]}  b6 {[%clk 0:02:47]} 7. d4 {[%clk 0:03:02]}  Bb7 {[%clk 0:02:23]} 8. Nc3 {[%clk 0:03:01]}  Qc8 {[%clk 0:01:47]} 9. Bb2 {[%clk 0:02:55]}  Rd8 {[%clk 0:01:37]} 10. Rc1 {[%clk 0:02:52]}  dxc4 {[%clk 0:01:33]} 11. bxc4 {[%clk 0:02:51]}  c5 {[%clk 0:01:32]} 12. e3 {[%clk 0:02:41]}  cxd4 {[%clk 0:01:20]} 13. exd4 {[%clk 0:02:42]}  Qxc4 {[%clk 0:01:00]} 14. Ne5 {[%clk 0:02:40]}  Qa6 {[%clk 0:00:59]} 15. d5 {[%clk 0:02:21]}  Nxd5 {[%clk 0:00:43]} 16. Nxd5 {[%clk 0:01:48]}  Bxd5 {[%clk 0:00:43]} 17. Qh5 {[%clk 0:01:25]}  g6 {[%clk 0:00:37]} 18. Qh6 {[%clk 0:00:59]}  Bf8 {[%clk 0:00:35]} 19. Qh4 {[%clk 0:00:59]}  Bxg2 {[%clk 0:00:19]} 20. Qxd8 {[%clk 0:00:48]}  Bxf1 {[%clk 0:00:16]} 21. Rc8 {[%clk 0:00:30]}  Nd7 {[%clk 0:00:15]} 22. Rxa8 {[%clk 0:00:24]}  Bh3 {[%clk 0:00:14]} 0-1


[Site "https://www.chess.com"]

[Event "Titled Tuesday Blitz October 25 Late 2022"]
[White "Chizhikov, Vladislav"]
[Black "Papasimakopoulos, Alexandros"]
[WhiteFideId "4178157"]
[BlackFideId "4244125"]
[WhiteElo "2179"]
[BlackElo "2357"]
[Result "0-1"]
[Round "03"]
[TimeControl "180+1"]
[Date "2022.10.26"]
[WhiteClock "0:00:12"]
[BlackClock "0:02:08"]

1. e4 {[%clk 0:03:00]}  e6 {[%clk 0:03:00]} 2. d4 {[%clk 0:03:00]}  d5 {[%clk 0:03:01]} 3. Nc3 {[%clk 0:03:00]}  Bb4 {[%clk 0:03:00]} 4. e5 {[%clk 0:03:01]}  b6 {[%clk 0:03:01]} 5. a3 {[%clk 0:03:01]}  Bf8 {[%clk 0:03:01]} 6. h4 {[%clk 0:02:59]}  h5 {[%clk 0:03:01]} 7. Nh3 {[%clk 0:02:58]}  Ne7 {[%clk 0:03:01]} 8. Bb5+ {[%clk 0:02:54]}  c6 {[%clk 0:03:01]} 9. Bd3 {[%clk 0:02:54]}  Ba6 {[%clk 0:03:02]} 10. Ng5 {[%clk 0:02:52]}  Bxd3 {[%clk 0:03:02]} 11. Qxd3 {[%clk 0:02:53]}  Nf5 {[%clk 0:03:02]} 12. Ne2 {[%clk 0:02:51]}  c5 {[%clk 0:03:03]} 13. c3 {[%clk 0:02:51]}  Nc6 {[%clk 0:03:03]} 14. Ng3 {[%clk 0:02:49]}  c4 {[%clk 0:03:03]} 15. Qf3 {[%clk 0:02:45]}  g6 {[%clk 0:03:01]} 16. Nxf5 {[%clk 0:02:24]}  gxf5 {[%clk 0:03:02]} 17. Nh3 {[%clk 0:02:24]}  Qxh4 {[%clk 0:02:58]} 18. Bf4 {[%clk 0:02:14]}  Qg4 {[%clk 0:02:57]} 19. Qe3 {[%clk 0:02:11]}  Qxg2 {[%clk 0:02:55]} 20. O-O-O {[%clk 0:02:06]}  Qe4 {[%clk 0:02:56]} 21. Qg3 {[%clk 0:02:01]}  Na5 {[%clk 0:02:56]} 22. Rde1 {[%clk 0:01:22]}  Nb3+ {[%clk 0:02:53]} 23. Kd1 {[%clk 0:01:22]}  Qb1+ {[%clk 0:02:47]} 24. Ke2 {[%clk 0:01:22]}  Qxb2+ {[%clk 0:02:44]} 25. Kf1 {[%clk 0:01:22]}  O-O-O {[%clk 0:02:41]} 26. Ng5 {[%clk 0:01:19]}  Rg8 {[%clk 0:02:41]} 27. Qf3 {[%clk 0:01:17]}  Bh6 {[%clk 0:02:32]} 28. Rxh5 {[%clk 0:01:13]}  Bxg5 {[%clk 0:02:32]} 29. Rxg5 {[%clk 0:01:13]}  Nd2+ {[%clk 0:02:30]} 30. Bxd2 {[%clk 0:01:10]}  Qxd2 {[%clk 0:02:31]} 31. Rh5 {[%clk 0:00:54]}  Rg1+ {[%clk 0:02:29]} 32. Kxg1 {[%clk 0:00:54]}  Qxe1+ {[%clk 0:02:29]} 33. Kh2 {[%clk 0:00:52]}  Rg8 {[%clk 0:02:30]} 34. Rh7 {[%clk 0:00:49]}  Qg1+ {[%clk 0:02:29]} 35. Kh3 {[%clk 0:00:48]}  Qg6 {[%clk 0:02:30]} 36. Rh4 {[%clk 0:00:45]}  b5 {[%clk 0:02:27]} 37. Rf4 {[%clk 0:00:28]}  a5 {[%clk 0:02:20]} 38. Rh4 {[%clk 0:00:28]}  b4 {[%clk 0:02:19]} 39. cxb4 {[%clk 0:00:26]}  axb4 {[%clk 0:02:20]} 40. axb4 {[%clk 0:00:26]}  Kb7 {[%clk 0:02:13]} 41. Rh5 {[%clk 0:00:09]}  Kb6 {[%clk 0:02:12]} 42. Rh4 {[%clk 0:00:09]}  Qg4+ {[%clk 0:02:05]} 43. Rxg4 {[%clk 0:00:07]}  fxg4+ {[%clk 0:02:05]} 44. Kg3 {[%clk 0:00:08]}  gxf3+ {[%clk 0:02:05]} 45. Kxf3 {[%clk 0:00:09]}  Kb5 {[%clk 0:02:05]} 46. Ke3 {[%clk 0:00:10]}  Kxb4 {[%clk 0:02:06]} 47. f4 {[%clk 0:00:09]}  Kb3 {[%clk 0:02:07]} 48. f5 {[%clk 0:00:10]}  c3 {[%clk 0:02:08]} 49. Kf4 {[%clk 0:00:11]}  c2 {[%clk 0:02:08]} 50. f6 {[%clk 0:00:12]}  c1=Q+ {[%clk 0:02:08]} 51. Kf3 {[%clk 0:00:12]}  Qc3+ {[%clk 0:02:07]} 52. Kf4 {[%clk 0:00:12]}  Qxd4+ {[%clk 0:02:08]} 0-1


[Site "https://www.chess.com"]

[Event "Titled Tuesday Blitz October 25 Late 2022"]
[White "Cortes Orihuela, Javier"]
[Black "Tomiello, Lucas Costamilan"]
[WhiteFideId "3414329"]
[BlackFideId "22701940"]
[WhiteElo "2080"]
[BlackElo "2085"]
[Result "0-1"]
[Round "03"]
[TimeControl "180+1"]
[Date "2022.10.26"]
[WhiteClock "0:00:07"]
[BlackClock "0:00:14"]

1. d4 {[%clk 0:03:00]}  Nf6 {[%clk 0:03:00]} 2. c4 {[%clk 0:03:00]}  e6 {[%clk 0:02:57]} 3. g3 {[%clk 0:03:00]}  Bb4+ {[%clk 0:02:56]} 4. Bd2 {[%clk 0:03:00]}  Be7 {[%clk 0:02:54]} 5. Bg2 {[%clk 0:02:59]}  d5 {[%clk 0:02:51]} 6. Nf3 {[%clk 0:02:59]}  O-O {[%clk 0:02:51]} 7. O-O {[%clk 0:02:59]}  dxc4 {[%clk 0:02:49]} 8. Qc2 {[%clk 0:02:53]}  a6 {[%clk 0:02:38]} 9. Qxc4 {[%clk 0:02:44]}  b5 {[%clk 0:02:38]} 10. Qc2 {[%clk 0:02:44]}  Bb7 {[%clk 0:02:38]} 11. Ba5 {[%clk 0:02:43]}  Nc6 {[%clk 0:02:24]} 12. Bc3 {[%clk 0:02:16]}  Nb4 {[%clk 0:02:05]} 13. Bxb4 {[%clk 0:01:38]}  Bxb4 {[%clk 0:02:06]} 14. Rc1 {[%clk 0:01:36]}  Be4 {[%clk 0:01:59]} 15. Qd1 {[%clk 0:01:25]}  c5 {[%clk 0:01:54]} 16. a3 {[%clk 0:01:19]}  Ba5 {[%clk 0:01:51]} 17. Rxc5 {[%clk 0:01:11]}  Bb6 {[%clk 0:01:49]} 18. Rc1 {[%clk 0:01:08]}  Bxf3 {[%clk 0:01:35]} 19. Bxf3 {[%clk 0:01:08]}  Bxd4 {[%clk 0:01:35]} 20. Nc3 {[%clk 0:00:30]}  Rc8 {[%clk 0:01:18]} 21. Qd3 {[%clk 0:00:15]}  Bxc3 {[%clk 0:01:09]} 22. Rxc3 {[%clk 0:00:14]}  Qxd3 {[%clk 0:01:08]} 23. Rxd3 {[%clk 0:00:15]}  Rc2 {[%clk 0:00:59]} 24. b4 {[%clk 0:00:15]}  e5 {[%clk 0:00:53]} 25. Bb7 {[%clk 0:00:14]}  e4 {[%clk 0:00:22]} 26. Re3 {[%clk 0:00:13]}  Rb8 {[%clk 0:00:20]} 27. Bxe4 {[%clk 0:00:11]}  Nxe4 {[%clk 0:00:20]} 28. Rxe4 {[%clk 0:00:11]}  g6 {[%clk 0:00:19]} 29. a4 {[%clk 0:00:10]}  Rd8 {[%clk 0:00:18]} 30. axb5 {[%clk 0:00:10]}  axb5 {[%clk 0:00:19]} 31. Ra5 {[%clk 0:00:09]}  Rdd2 {[%clk 0:00:18]} 32. Rxb5 {[%clk 0:00:09]}  Rxe2 {[%clk 0:00:19]} 33. Rxe2 {[%clk 0:00:09]}  Rxe2 {[%clk 0:00:20]} 34. Rb7 {[%clk 0:00:07]}  Rb2 {[%clk 0:00:20]} 35. Kg2 {[%clk 0:00:07]}  Kg7 {[%clk 0:00:21]} 36. h4 {[%clk 0:00:08]}  Kf6 {[%clk 0:00:22]} 37. Rb6+ {[%clk 0:00:08]}  Ke7 {[%clk 0:00:22]} 38. Kf3 {[%clk 0:00:08]}  Rb3+ {[%clk 0:00:21]} 39. Ke4 {[%clk 0:00:08]}  Rb2 {[%clk 0:00:22]} 40. f3 {[%clk 0:00:08]}  h5 {[%clk 0:00:21]} 41. Kf4 {[%clk 0:00:07]}  Rb3 {[%clk 0:00:20]} 42. g4 {[%clk 0:00:07]}  hxg4 {[%clk 0:00:17]} 43. fxg4 {[%clk 0:00:08]}  Rb1 {[%clk 0:00:18]} 44. h5 {[%clk 0:00:08]}  gxh5 {[%clk 0:00:18]} 45. gxh5 {[%clk 0:00:09]}  Rf1+ {[%clk 0:00:18]} 46. Kg5 {[%clk 0:00:08]}  Rg1+ {[%clk 0:00:13]} 47. Kh6 {[%clk 0:00:09]}  f5 {[%clk 0:00:14]} 48. Kh7 {[%clk 0:00:05]}  f4 {[%clk 0:00:14]} 49. h6 {[%clk 0:00:05]}  f3 {[%clk 0:00:14]} 50. Rb5 {[%clk 0:00:06]}  Ke6 {[%clk 0:00:12]} 51. Rb6+ {[%clk 0:00:06]}  Ke5 {[%clk 0:00:13]} 52. Rb8 {[%clk 0:00:06]}  f2 {[%clk 0:00:13]} 53. Rf8 {[%clk 0:00:06]}  f1=Q {[%clk 0:00:13]} 54. Rxf1 {[%clk 0:00:06]}  Rxf1 {[%clk 0:00:14]} 55. Kg8 {[%clk 0:00:06]}  Rg1+ {[%clk 0:00:13]} 56. Kh8 {[%clk 0:00:06]}  Kf6 {[%clk 0:00:12]} 57. h7 {[%clk 0:00:06]}  Kf7 {[%clk 0:00:13]} 58. b5 {[%clk 0:00:06]}  Ra1 {[%clk 0:00:13]} 59. b6 {[%clk 0:00:07]}  Ra8# {[%clk 0:00:14]} 0-1


[Site "https://www.chess.com"]

[Event "Titled Tuesday Blitz October 25 Late 2022"]
[White "Dilanyan, Grigor"]
[Black "Prydun, Andriy"]
[WhiteFideId "13303570"]
[BlackFideId "14145898"]
[WhiteElo "2264"]
[BlackElo "2163"]
[Result "1-0"]
[Round "03"]
[TimeControl "180+1"]
[Date "2022.10.26"]
[WhiteClock "0:02:02"]
[BlackClock "0:00:04"]

1. d4 {[%clk 0:03:00]}  Nf6 {[%clk 0:02:57]} 2. Nf3 {[%clk 0:02:58]}  c6 {[%clk 0:02:54]} 3. Bg5 {[%clk 0:02:57]}  Qb6 {[%clk 0:02:52]} 4. Bxf6 {[%clk 0:02:54]}  gxf6 {[%clk 0:02:50]} 5. b3 {[%clk 0:02:50]}  d5 {[%clk 0:02:43]} 6. Nbd2 {[%clk 0:02:48]}  Bg7 {[%clk 0:02:30]} 7. e4 {[%clk 0:02:47]}  f5 {[%clk 0:02:28]} 8. e5 {[%clk 0:02:46]}  Bh6 {[%clk 0:02:14]} 9. Bd3 {[%clk 0:02:46]}  e6 {[%clk 0:01:47]} 10. O-O {[%clk 0:02:45]}  Qd8 {[%clk 0:01:44]} 11. Qe2 {[%clk 0:02:40]}  Nd7 {[%clk 0:01:44]} 12. c4 {[%clk 0:02:37]}  Nf8 {[%clk 0:01:44]} 13. cxd5 {[%clk 0:02:35]}  cxd5 {[%clk 0:01:45]} 14. Rac1 {[%clk 0:02:34]}  Ng6 {[%clk 0:01:43]} 15. g3 {[%clk 0:02:34]}  O-O {[%clk 0:01:38]} 16. Rc2 {[%clk 0:02:34]}  Kh8 {[%clk 0:01:35]} 17. Rfc1 {[%clk 0:02:33]}  Rg8 {[%clk 0:01:35]} 18. Rc7 {[%clk 0:02:33]}  Nf4 {[%clk 0:01:34]} 19. Qf1 {[%clk 0:02:33]}  Qe8 {[%clk 0:01:21]} 20. Bb5 {[%clk 0:02:29]}  Qf8 {[%clk 0:01:20]} 21. Kh1 {[%clk 0:02:29]}  Ng6 {[%clk 0:01:19]} 22. R1c2 {[%clk 0:02:27]}  Qb4 {[%clk 0:01:13]} 23. Rxf7 {[%clk 0:02:13]}  Bxd2 {[%clk 0:00:57]} 24. Nxd2 {[%clk 0:02:12]}  Qxd4 {[%clk 0:00:55]} 25. Rcc7 {[%clk 0:02:11]}  Nf8 {[%clk 0:00:55]} 26. Qh3 {[%clk 0:02:08]}  Bd7 {[%clk 0:00:44]} 27. Rcxd7 {[%clk 0:02:06]}  Qa1+ {[%clk 0:00:04]} 28. Bf1 {[%clk 0:02:03]}  Rg6 {[%clk 0:00:04]} 29. Rxf8+ {[%clk 0:02:02]} 1-0


[Site "https://www.chess.com"]